lending/lending_fUSD_20250508
["ID","MTS","AMOUNT","RATE_DAILY","PERIOD"]
[360273512,1746688244517,-2758.94,0.00019999,2]
[360273513,1746688244526,-2758.94,0.00019999,2]
[360273514,1746688244536,-2758.94,0.00019999,2]
[360273515,1746688244546,-2758.94,0.00019999,2]
[360273516,1746688244556,-2758.94,0.00019999,2]
[360273517,1746688244566,-2758.94,0.00019999,2]
[360273518,1746688244576,-2758.94,0.00019999,2]
[360273519,1746688244586,-2758.94,0.00019999,2]
[360273520,1746688244596,-2758.94,0.00019999,2]
[360273521,1746688244606,-2759.148,0.00019999,2]
[360273522,1746688244615,-2079.78,0.00019999,2]
[360273523,1746688244625,-2079.78,0.00019999,2]
[360273524,1746688244636,-2079.78,0.00019999,2]
[360273525,1746688244647,-2079.78,0.00019999,2]
[360273526,1746688244657,-2079.78,0.00019999,2]
[360273527,1746688244666,-2079.78,0.00019999,2]
[360273528,1746688244677,-2079.78,0.00019999,2]
[360273529,1746688244686,-2079.78,0.00019999,2]
[360273530,1746688244697,-2079.78,0.00019999,2]
[360273531,1746688244706,-2079.78,0.00019999,2]
[360273532,1746688244716,-2079.78,0.00019999,2]
[360273533,1746688244726,-2079.78,0.00019999,2]
[360273534,1746688244736,-2079.78,0.00019999,2]
[360273535,1746688244747,-2079.78,0.00019999,2]
[360273536,1746688244758,-2079.78,0.00019999,2]
[360273537,1746688244767,-2079.78,0.00019999,2]
[360273538,1746688244776,-2079.78,0.00019999,2]
[360273539,1746688244786,-2079.78,0.00019999,2]
[360273540,1746688244796,-2079.78,0.00019999,2]
[360273541,1746688244806,-2079.92,0.00019999,2]
[360273542,1746688244816,-8490.76,0.00019999,2]
[360273543,1746688244825,-8490.76,0.00019999,2]
[360273544,1746688244835,-8490.76,0.00019999,2]
[360273545,1746688244845,-8490.76,0.00019999,2]
[360273546,1746688244854,-8490.76,0.00019999,2]
[360273547,1746688244864,-8490.76,0.00019999,2]
[360273548,1746688244874,-8490.76,0.00019999,2]
[360273549,1746688244884,-8490.76,0.00019999,2]
[360273550,1746688244894,-8490.76,0.00019999,2]
[360273551,1746688244905,-8490.76,0.00019999,2]
[360273552,1746688244915,-8490.76,0.00019999,2]
[360273553,1746688244924,-8490.76,0.00019999,2]
[360273554,1746688244934,-8490.76,0.00019999,2]
[360273555,1746688244944,-8490.76,0.00019999,2]
[360273556,1746688244956,-8490.76,0.00019999,2]
[360273557,1746688244965,-8490.76,0.00019999,2]
[360273558,1746688244975,-8490.76,0.00019999,2]
[360273559,1746688244985,-8490.76,0.00019999,2]
[360273560,1746688244995,-8490.76,0.00019999,2]
[360273561,1746688245005,-1963.15,0.00019999,2]
[360273562,1746688245015,-8490.84669179,0.00019999,2]
[360273563,1746688245025,-1963.15,0.00019999,2]
[360273564,1746688245036,-1963.15,0.00019999,2]
[360273565,1746688245046,-1963.15,0.00019999,2]
[360273566,1746688245068,-1963.15,0.00019999,2]
[360273567,1746688245079,-1963.15,0.00019999,2]
[360273568,1746688245089,-1963.15,0.00019999,2]
[360273569,1746688245099,-1963.15,0.00019999,2]
[360273570,1746688245108,-1963.15,0.00019999,2]
[360273571,1746688245119,-1963.15,0.00019999,2]
[360273572,1746688245131,-1963.15,0.00019999,2]
[360273573,1746688245141,-1963.15,0.00019999,2]
[360273574,1746688245151,-1963.15,0.00019999,2]
[360273575,1746688245161,-4739.02,0.00019999,2]
[360273576,1746688245171,-1963.15,0.00019999,2]
[360273577,1746688245182,-4739.02,0.00019999,2]
[360273578,1746688245192,-1963.15,0.00019999,2]
[360273579,1746688245202,-4739.02,0.00019999,2]
[360273580,1746688245212,-1963.15,0.00019999,2]
[360273581,1746688245222,-4739.02,0.00019999,2]
[360273582,1746688245233,-1963.15,0.00019999,2]
[360273583,1746688245243,-1963.15,0.00019999,2]
[360273584,1746688245254,-4739.02,0.00019999,2]
[360273585,1746688245264,-1963.15,0.00019999,2]
[360273586,1746688245275,-1963.25563083,0.00019999,2]
[360273587,1746688245285,-450.0,0.00019999,2]
[360273588,1746688245295,-4739.02,0.00019999,2]
[360273589,1746688245305,-4739.02,0.00019999,2]
[360273590,1746688245315,-450.0,0.00019999,2]
[360273591,1746688245326,-450.0,0.00019999,2]
[360273592,1746688245336,-4739.02,0.00019999,2]
[360273593,1746688245346,-450.0,0.00019999,2]
[360273594,1746688245357,-4739.02,0.00019999,2]
[360273595,1746688245369,-450.0,0.00019999,2]
[360273596,1746688245379,-2290.19969707,0.00019999,2]
[360273597,1746688245415,-2448.82030293,0.00019999,2]
[360273598,1746688245426,-450.0,0.00019999,2]
[360273599,1746688245437,-450.0,0.00019999,2]
[360273600,1746688245447,-450.0,0.00019999,2]
[360273601,1746688245457,-450.0,0.00019999,2]
[360273602,1746688245468,-450.0,0.00019999,2]
[360273603,1746688245480,-4739.02,0.00019999,2]
[360273604,1746688245490,-450.0,0.00019999,2]
[360273605,1746688245506,-450.0,0.00019999,2]
[360273606,1746688245518,-4739.02,0.00019999,2]
[360273607,1746688245528,-450.0,0.00019999,2]
[360273608,1746688245539,-450.0,0.00019999,2]
[360273609,1746688245549,-4739.02,0.00019999,2]
[360273610,1746688245560,-450.0,0.00019999,2]
[360273611,1746688245571,-555.4,0.00019999,2]
[360273612,1746688245581,-4739.02,0.00019999,2]
[360273613,1746688245592,-450.0,0.00019999,2]
[360273614,1746688245603,-4739.02,0.00019999,2]
[360273615,1746688245615,-450.0,0.00019999,2]
[360273616,1746688245625,-4739.02,0.00019999,2]
[360273617,1746688245636,-450.0,0.00019999,2]
[360273618,1746688245646,-4739.02,0.00019999,2]
[360273619,1746688245656,-450.0,0.00019999,2]
[360273620,1746688245667,-4739.02,0.00019999,2]
[360273621,1746688245678,-450.0,0.00019999,2]
[360273622,1746688245688,-4739.02,0.00019999,2]
[360273623,1746688245698,-583.49,0.00019999,2]
[360273624,1746688245709,-2221.58818223,0.00019999,2]
[360273625,1746688245798,-292.37499975,0.00019999,2]
[360273626,1746688245815,-2225.15028588,0.00019999,2]
[360273627,1746688245826,-2322.05,0.00019999,2]
[360273628,1746688245836,-2322.05,0.00019999,2]
[360273629,1746688245846,-2322.05,0.00019999,2]
[360273630,1746688245856,-2322.05,0.00019999,2]
[360273631,1746688245867,-2322.05,0.00019999,2]
[360273632,1746688245878,-2322.05,0.00019999,2]
[360273633,1746688245888,-2322.05,0.00019999,2]
[360273634,1746688245898,-2322.05,0.00019999,2]
[360273635,1746688245908,-2322.05,0.00019999,2]
[360273636,1746688245918,-2322.05,0.00019999,2]
[360273637,1746688245928,-2322.05,0.00019999,2]
[360273638,1746688245938,-2322.05,0.00019999,2]
[360273639,1746688245955,-2322.05,0.00019999,2]
[360273640,1746688245965,-2322.05,0.00019999,2]
[360273641,1746688245975,-2322.05,0.00019999,2]
[360273642,1746688245985,-2322.05,0.00019999,2]
[360273643,1746688245995,-2322.05,0.00019999,2]
[360273644,1746688246005,-2322.05,0.00019999,2]
[360273645,1746688246015,-2322.05,0.00019999,2]
[360273646,1746688246026,-2322.196,0.00019999,2]
[360273647,1746688246037,-357.22436642,0.0002,2]
[360273648,1746688246048,-50071.60785431,0.0002,2]
[360273649,1746688246061,-2260.76583272,0.0002,2]
[360273650,1746688246167,-588.8379971,0.0002,2]
[360273651,1746688246183,-47406.12411866,0.0002,2]
[360273652,1746688246196,-1931.04906094,0.0002,2]
[360273653,1746688246212,-1488.15,0.0002,2]
[360273654,1746688246224,-1225.58857135,0.0002,2]
[360273655,1746688246236,-7737.52,0.0002,2]
[360273664,1746688275648,156.9550191,0.0003,30]
[360273665,1746688277431,150.0,0.0003,30]
[360273666,1746688282076,209.86695931,0.0003,30]
[360273667,1746688283000,286.58839103,0.0003,30]
[360273668,1746688322849,335.85,0.00024942,120]
[360273669,1746688323045,335.85,0.00027436,120]
[360273670,1746688323259,335.85,0.0002993,120]
[360273672,1746688452858,450.0,0.0003,30]
[360273673,1746688502119,4525.36,0.0003,30]
[360273674,1746688505936,150.0,0.0003,30]
[360273675,1746688546314,1333.0,0.00029041,120]
[360273676,1746688570976,597.0,0.0003,30]
[360273677,1746688620119,157.29,0.00019385,2]
[360273678,1746688620327,157.29,0.00019392,2]
[360273679,1746688620526,157.29,0.00019399,2]
[360273680,1746688620724,157.29,0.00019406,2]
[360273681,1746688620940,157.29,0.00019413,2]
[360273682,1746688621132,157.29,0.0001942,2]
[360273683,1746688621328,157.29,0.00019427,2]
[360273684,1746688621905,157.29,0.00019434,2]
[360273685,1746688622029,157.29,0.00019441,2]
[360273686,1746688622258,157.29,0.00019448,2]
[360273687,1746688622475,157.29,0.00019454,2]
[360273688,1746688622686,157.29,0.00019461,2]
[360273689,1746688622900,157.29,0.00019468,2]
[360273690,1746688623182,157.29,0.00019475,2]
[360273691,1746688623574,157.29,0.00019482,2]
[360273692,1746688690746,200.0,0.0003,30]
[360273695,1746688740879,173.33,0.00019463,2]
[360273696,1746688757051,432.0,0.0003,30]
[360273697,1746688788836,250.0,0.00017,2]
[360273698,1746688789925,200.47515817,0.00019,2]
[360273699,1746688789959,99.52484183,0.00019,2]
[360273700,1746688790009,200.0,0.00019422,2]
[360273701,1746688838283,901.79,0.00030137,120]
[360273702,1746688869478,228.97,0.00019296,2]
[360273703,1746689006052,1000.0,0.00019283,2]
[360273704,1746689111157,1272.25921076,0.000154,2]
[360273705,1746689128656,791.2025315,0.00011,2]
[360273706,1746689128707,430.55745797,0.00023,120]
[360273707,1746689132952,1333.22824175,0.0002,120]
[360273708,1746689134847,1067.90664393,0.0003013,120]
[360273709,1746689156374,503.03868951,6.94e-05,2]
[360273710,1746689170368,572.0,0.0003,30]
[360273715,1746689224174,476.77,0.00017353,2]
[360273716,1746689231799,1581.70137364,0.00015,2]
[360273717,1746689231957,1144.37724261,0.0003,120]
[360273718,1746689251506,300.0,0.00019,2]
[360273719,1746689267873,194.5862725,0.00028,120]
[360273720,1746689269493,1223.27569056,0.0003,120]
[360273722,1746689275034,2020.0,0.0002,120]
[360273723,1746689289082,640.0,0.00019101,2]
[360273724,1746689289721,640.0,0.00026264,120]
[360273725,1746689290128,640.0,0.00028651,120]
[360273726,1746689298327,805.34125131,0.000135,2]
[360273727,1746689298459,297.49529292,0.000125,2]
[360273728,1746689305896,1869.69080099,0.0001,2]
[360273729,1746689314450,299.77939942,0.00028799,120]
[360273730,1746689314958,216.74145816,0.0001,2]
[360273731,1746689316490,1399.87893168,0.000149,2]
[360273732,1746689317222,1998.55532915,0.0003,120]
[360273733,1746689317590,162.53882581,0.0003,120]
[360273734,1746689320217,1837.57087411,0.0003,120]
[360273735,1746689324754,27832.32,0.00019083,2]
[360273736,1746689326677,654.51618886,0.0002,120]
[360273737,1746689329255,1333.0,0.00029041,120]
[360273768,1746689432122,-476.77,0.00019617,2]
[360273769,1746689432134,-222.2706038,0.00019641,2]
[360273770,1746689432149,-27.7293962,0.00019641,2]
[360273771,1746689432160,-200.0,0.00019666,2]
[360273772,1746689432169,-250.0,0.00019703,2]
[360273773,1746689432180,-752.64205549,0.00019714,2]
[360273774,1746689432247,-275.65034164,0.00019714,2]
[360273790,1746689438144,-171.70760287,0.00019714,2]
[360273791,1746689438155,-300.0,0.00019714,2]
[360273792,1746689438166,-1512.0,0.00019715,2]
[360273793,1746689438176,-554.15580713,0.00019715,2]
[360273794,1746689438188,-2049.22741842,0.00019715,2]
[360273795,1746689438199,-200.0,0.00019805,2]
[360273796,1746689438209,-218.37307826,0.00019898,2]
[360273797,1746689438219,-572.83478046,0.00019899,2]
[360273798,1746689438229,-163.80198754,0.00019899,2]
[360273799,1746689438240,-492.08348646,0.00019899,2]
[360273800,1746689438251,-163.80198753,0.000199,2]
[360273801,1746689438261,-272.57268833,0.000199,2]
[360273802,1746689438273,-82.36216657,0.000199,2]
[360273803,1746689438283,-163.78282338,0.000199,2]
[360273804,1746689438292,-2733.84501005,0.000199,2]
[360273805,1746689438304,-6653.56763591,0.000199,2]
[360273806,1746689438313,-163.80198753,0.000199,2]
[360273807,1746689438323,-787.19836322,0.000199,2]
[360273808,1746689438332,-1633.59545359,0.000199,2]
[360273809,1746689438342,-165.8257278,0.000199,2]
[360273810,1746689438352,-199.54860044,0.000199,2]
[360273811,1746689438362,-207.4,0.00019945,2]
[360273812,1746689438372,-335.85,0.00019953,2]
[360273813,1746689438381,-500.0,0.00019973,2]
[360273814,1746689438392,-500.0,0.00019973,2]
[360273815,1746689438401,-450.0,0.00019989,2]
[360273816,1746689438411,-1199.614,0.00019989,2]
[360273817,1746689438421,-450.0,0.00019989,2]
[360273818,1746689438431,-450.0,0.00019989,2]
[360273819,1746689438441,-450.0,0.00019998,2]
[360273820,1746689438456,-450.0,0.00019998,2]
[360273821,1746689438466,-450.0,0.00019998,2]
[360273822,1746689438478,-450.0,0.00019998,2]
[360273823,1746689438489,-450.0,0.00019998,2]
[360273824,1746689438500,-450.0,0.00019998,2]
[360273825,1746689438510,-450.0,0.00019998,2]
[360273826,1746689438520,-450.0,0.00019998,2]
[360273827,1746689438532,-450.0,0.00019998,2]
[360273828,1746689438543,-315.56,0.00019998,2]
[360273829,1746689438553,-500.0,0.00019998,2]
[360273830,1746689438563,-500.0,0.00019998,2]
[360273831,1746689438572,-500.0,0.00019998,2]
[360273832,1746689438582,-500.0,0.00019998,2]
[360273833,1746689438591,-479.57293784,0.00019998,2]
[360273834,1746689438601,-500.0,0.00019998,2]
[360273835,1746689438610,-500.0,0.00019998,2]
[360273836,1746689438619,-500.0,0.00019998,2]
[360273837,1746689438629,-500.0,0.00019998,2]
[360273838,1746689438638,-500.0,0.00019998,2]
[360273839,1746689438648,-500.0,0.00019998,2]
[360273840,1746689438658,-500.0,0.00019998,2]
[360273841,1746689438668,-500.0,0.00019998,2]
[360273842,1746689438677,-500.0,0.00019998,2]
[360273843,1746689438687,-500.0,0.00019998,2]
[360273844,1746689438696,-216.88947522,0.00019998,2]
[360273845,1746689438706,-386.61921531,0.00019998,2]
[360273846,1746689438715,-520.35,0.00019998,2]
[360273847,1746689438725,-5005.57,0.00019998,2]
[360273848,1746689438734,-2529.03609025,0.00019998,2]
[360273849,1746689438746,-546.66327439,0.00019998,2]
[360273868,1746689440295,-496.785,0.00019998,2]
[360273869,1746689440542,-591.20896888,0.00019998,2]
[360273870,1746689440555,-841.87666648,0.00019998,2]
[360273871,1746689440565,-450.0,0.00019998,2]
[360273872,1746689440574,-450.0,0.00019998,2]
[360273873,1746689440584,-450.0,0.00019998,2]
[360273874,1746689440594,-450.0,0.00019998,2]
[360273875,1746689440603,-450.0,0.00019998,2]
[360273876,1746689440613,-471.0,0.00019998,2]
[360273877,1746689440622,-450.0,0.00019998,2]
[360273878,1746689440632,-450.0,0.00019998,2]
[360273879,1746689440641,-555.71,0.00019998,2]
[360273880,1746689440651,-555.71,0.00019998,2]
[360273881,1746689440660,-234.83685557,0.00019998,2]
[360273882,1746689440670,-450.0,0.00019998,2]
[360273883,1746689440680,-450.0,0.00019998,2]
[360273884,1746689440690,-450.0,0.00019998,2]
[360273885,1746689440699,-450.0,0.00019998,2]
[360273886,1746689440710,-450.0,0.00019998,2]
[360273887,1746689440720,-450.0,0.00019998,2]
[360273888,1746689440729,-450.0,0.00019998,2]
[360273889,1746689440740,-450.0,0.00019998,2]
[360273890,1746689440750,-450.0,0.00019998,2]
[360273891,1746689440761,-450.0,0.00019998,2]
[360273892,1746689440771,-450.0,0.00019998,2]
[360273893,1746689440782,-450.0,0.00019998,2]
[360273894,1746689440793,-481.7447211,0.00019998,2]
[360273895,1746689440804,-704.88,0.00019998,2]
[360273896,1746689440814,-704.88,0.00019998,2]
[360273897,1746689440825,-450.0,0.00019998,2]
[360273898,1746689440835,-450.0,0.00019998,2]
[360273899,1746689440847,-450.0,0.00019998,2]
[360273900,1746689440858,-450.0,0.00019998,2]
[360273901,1746689440867,-450.0,0.00019998,2]
[360273902,1746689440877,-450.0,0.00019998,2]
[360273903,1746689440886,-450.0,0.00019998,2]
[360273904,1746689440895,-450.0,0.00019998,2]
[360273905,1746689440905,-450.0,0.00019998,2]
[360273906,1746689440914,-450.0,0.00019998,2]
[360273907,1746689440923,-450.0,0.00019998,2]
[360273908,1746689440933,-450.0,0.00019998,2]
[360273909,1746689440942,-450.0,0.00019998,2]
[360273910,1746689440952,-450.0,0.00019998,2]
[360273911,1746689440962,-450.0,0.00019998,2]
[360273912,1746689440971,-450.0,0.00019998,2]
[360273913,1746689440981,-166.4,0.00019998,2]
[360273914,1746689440990,-1468.89,0.00019998,2]
[360273915,1746689441000,-1468.89,0.00019998,2]
[360273916,1746689441009,-501.60279646,0.00019998,2]
[360273917,1746689441019,-450.0,0.00019998,2]
[360273918,1746689441028,-450.0,0.00019998,2]
[360273919,1746689441038,-450.0,0.00019998,2]
[360273920,1746689441048,-450.0,0.00019998,2]
[360273921,1746689441057,-4778.64,0.00019998,2]
[360273922,1746689441067,-4778.64,0.00019998,2]
[360273923,1746689441076,-450.0,0.00019998,2]
[360273924,1746689441085,-450.0,0.00019998,2]
[360273925,1746689441096,-447.14,0.00019998,2]
[360273926,1746689441107,-450.0,0.00019998,2]
[360273927,1746689441329,-195.99350957,0.00019998,2]
[360273928,1746689441342,-450.0,0.00019998,2]
[360273929,1746689441353,-450.0,0.00019998,2]
[360273930,1746689441363,-450.0,0.00019998,2]
[360273931,1746689441373,-450.0,0.00019998,2]
[360273932,1746689441382,-450.0,0.00019998,2]
[360273933,1746689441394,-582.98,0.00019998,2]
[360273934,1746689441404,-450.0,0.00019998,2]
[360273935,1746689441415,-853.76,0.00019998,2]
[360273936,1746689441425,-853.76,0.00019998,2]
[360273937,1746689441436,-450.0,0.00019998,2]
[360273938,1746689441449,-505.96659849,0.00019998,2]
[360273939,1746689441460,-1837.64,0.00019998,2]
[360273940,1746689441470,-1837.64,0.00019998,2]
[360273941,1746689441482,-1837.64,0.00019998,2]
[360273942,1746689441495,-462.92736485,0.00019998,2]
[360273943,1746689441505,-450.0,0.00019998,2]
[360273944,1746689441515,-1126.55,0.00019998,2]
[360273945,1746689441526,-1126.55,0.00019998,2]
[360273946,1746689441536,-8737.6,0.00019998,2]
[360273947,1746689441546,-8737.6,0.00019998,2]
[360273948,1746689441555,-8737.6,0.00019998,2]
[360273949,1746689441566,-1872.55,0.00019998,2]
[360273950,1746689441575,-1872.55,0.00019998,2]
[360273951,1746689441586,-1872.55,0.00019998,2]
[360273952,1746689441595,-1635.96,0.00019998,2]
[360273953,1746689441605,-1635.96,0.00019998,2]
[360273954,1746689441615,-1635.96,0.00019998,2]
[360273955,1746689441625,-2660.66663042,0.00019999,2]
[360273956,1746689441635,-450.0,0.00019999,2]
[360273957,1746689441644,-450.0,0.00019999,2]
[360273958,1746689441654,-450.0,0.00019999,2]
[360273959,1746689441663,-450.0,0.00019999,2]
[360273960,1746689441672,-390.66,0.00019999,2]
[360273961,1746689441682,-207.68,0.00019999,2]
[360273962,1746689441691,-5005.57,0.00019999,2]
[360273963,1746689441701,-5005.57,0.00019999,2]
[360273964,1746689441711,-5005.57,0.00019999,2]
[360273965,1746689441721,-5005.57,0.00019999,2]
[360273966,1746689441731,-5005.57,0.00019999,2]
[360273967,1746689441742,-5005.57,0.00019999,2]
[360273968,1746689441753,-5005.57,0.00019999,2]
[360273969,1746689441763,-5005.57,0.00019999,2]
[360273970,1746689441776,-5005.57,0.00019999,2]
[360273971,1746689441786,-5005.57,0.00019999,2]
[360273972,1746689441797,-5005.57,0.00019999,2]
[360273973,1746689441807,-5005.57,0.00019999,2]
[360273974,1746689441819,-5005.57,0.00019999,2]
[360273975,1746689441829,-5005.57,0.00019999,2]
[360273976,1746689441839,-5005.57,0.00019999,2]
[360273977,1746689441851,-5005.57,0.00019999,2]
[360273978,1746689441862,-5005.57,0.00019999,2]
[360273979,1746689441872,-5005.57,0.00019999,2]
[360273980,1746689441882,-5005.57,0.00019999,2]
[360273981,1746689441892,-5005.57,0.00019999,2]
[360273982,1746689441901,-5005.57,0.00019999,2]
[360273983,1746689441911,-5005.6172,0.00019999,2]
[360273984,1746689441921,-450.0,0.00019999,2]
[360273985,1746689441930,-450.0,0.00019999,2]
[360273986,1746689441939,-450.0,0.00019999,2]
[360273987,1746689441949,-450.0,0.00019999,2]
[360273988,1746689441958,-450.0,0.00019999,2]
[360273989,1746689441968,-450.0,0.00019999,2]
[360273990,1746689441977,-450.0,0.00019999,2]
[360273991,1746689441987,-450.0,0.00019999,2]
[360273992,1746689441996,-450.0,0.00019999,2]
[360273993,1746689442007,-450.0,0.00019999,2]
[360273994,1746689442016,-450.0,0.00019999,2]
[360273995,1746689442026,-450.0,0.00019999,2]
[360273996,1746689442035,-545.0038,0.00019999,2]
[360273997,1746689442044,-450.0,0.00019999,2]
[360273998,1746689442055,-450.0,0.00019999,2]
[360273999,1746689442065,-450.0,0.00019999,2]
[360274000,1746689442077,-450.0,0.00019999,2]
[360274001,1746689442087,-450.0,0.00019999,2]
[360274002,1746689442098,-450.0,0.00019999,2]
[360274003,1746689442107,-450.0,0.00019999,2]
[360274004,1746689442118,-450.0,0.00019999,2]
[360274005,1746689442129,-450.0,0.00019999,2]
[360274006,1746689442139,-555.71,0.00019999,2]
[360274007,1746689442148,-555.71,0.00019999,2]
[360274008,1746689442158,-555.71,0.00019999,2]
[360274009,1746689442168,-555.71,0.00019999,2]
[360274010,1746689442179,-555.71,0.00019999,2]
[360274011,1746689442189,-555.71,0.00019999,2]
[360274012,1746689442200,-555.71,0.00019999,2]
[360274013,1746689442210,-555.71,0.00019999,2]
[360274014,1746689442220,-555.71,0.00019999,2]
[360274015,1746689442229,-555.71,0.00019999,2]
[360274016,1746689442239,-555.71,0.00019999,2]
[360274017,1746689442249,-555.71,0.00019999,2]
[360274018,1746689442260,-555.71,0.00019999,2]
[360274019,1746689442271,-555.71,0.00019999,2]
[360274020,1746689442282,-555.71,0.00019999,2]
[360274021,1746689442292,-555.71,0.00019999,2]
[360274022,1746689442304,-555.71,0.00019999,2]
[360274023,1746689442314,-555.71,0.00019999,2]
[360274024,1746689442325,-555.71,0.00019999,2]
[360274025,1746689442335,-555.71,0.00019999,2]
[360274026,1746689442345,-555.71,0.00019999,2]
[360274027,1746689442355,-555.90728271,0.00019999,2]
[360274028,1746689442365,-450.0,0.00019999,2]
[360274029,1746689442375,-450.0,0.00019999,2]
[360274030,1746689442388,-450.0,0.00019999,2]
[360274031,1746689442399,-450.0,0.00019999,2]
[360274032,1746689442409,-450.0,0.00019999,2]
[360274033,1746689442419,-450.0,0.00019999,2]
[360274034,1746689442434,-450.0,0.00019999,2]
[360274035,1746689442446,-450.0,0.00019999,2]
[360274036,1746689442456,-450.0,0.00019999,2]
[360274037,1746689442465,-403.78,0.00019999,2]
[360274038,1746689442475,-450.0,0.00019999,2]
[360274039,1746689442484,-450.0,0.00019999,2]
[360274040,1746689442493,-450.0,0.00019999,2]
[360274041,1746689442503,-450.0,0.00019999,2]
[360274042,1746689442512,-450.0,0.00019999,2]
[360274043,1746689442522,-328.80162337,0.00019999,2]
[360274044,1746689442533,-450.0,0.00019999,2]
[360274045,1746689442544,-450.0,0.00019999,2]
[360274046,1746689442553,-450.0,0.00019999,2]
[360274047,1746689442562,-450.0,0.00019999,2]
[360274048,1746689442572,-450.0,0.00019999,2]
[360274049,1746689442581,-450.0,0.00019999,2]
[360274050,1746689442591,-450.0,0.00019999,2]
[360274051,1746689442600,-450.0,0.00019999,2]
[360274052,1746689442609,-450.0,0.00019999,2]
[360274053,1746689442619,-310.98,0.00019999,2]
[360274054,1746689442628,-450.0,0.00019999,2]
[360274055,1746689442638,-450.0,0.00019999,2]
[360274056,1746689442647,-450.0,0.00019999,2]
[360274057,1746689442657,-450.0,0.00019999,2]
[360274058,1746689442666,-450.0,0.00019999,2]
[360274060,1746689442676,-450.0,0.00019999,2]
[360274061,1746689442686,-450.0,0.00019999,2]
[360274062,1746689442695,-466.26999411,0.00019999,2]
[360274063,1746689442704,-450.0,0.00019999,2]
[360274064,1746689442714,-450.0,0.00019999,2]
[360274065,1746689442724,-450.0,0.00019999,2]
[360274066,1746689442733,-450.0,0.00019999,2]
[360274067,1746689442742,-201.03573831,0.00019999,2]
[360274068,1746689442751,-450.0,0.00019999,2]
[360274069,1746689442760,-450.0,0.00019999,2]
[360274070,1746689442769,-437.45405081,0.00019999,2]
[360274071,1746689442778,-704.88,0.00019999,2]
[360274072,1746689442787,-704.88,0.00019999,2]
[360274073,1746689442797,-704.88,0.00019999,2]
[360274074,1746689442806,-704.88,0.00019999,2]
[360274075,1746689442815,-704.88,0.00019999,2]
[360274076,1746689442825,-41449.12026752,0.00019999,2]
[360274078,1746689442834,-704.88,0.00019999,2]
[360274080,1746689442843,-704.88,0.00019999,2]
[360274082,1746689442852,-450.0,0.00019999,2]
[360274084,1746689442861,-704.88,0.00019999,2]
[360274085,1746689442871,-704.88,0.00019999,2]
[360274086,1746689442880,-704.88,0.00019999,2]
[360274087,1746689442889,-704.88,0.00019999,2]
[360274089,1746689442899,-704.88,0.00019999,2]
[360274090,1746689442908,-704.88,0.00019999,2]
[360274091,1746689442917,-704.88,0.00019999,2]
[360274093,1746689442926,-704.88,0.00019999,2]
[360274094,1746689442935,-242.14777644,0.00019999,2]
[360274095,1746689442944,-704.88,0.00019999,2]
[360274096,1746689442953,-704.88,0.00019999,2]
[360274097,1746689442962,-704.88,0.00019999,2]